[Event "Early-Titled-Tuesday-Blitz-October-10-2023"]
[Site "Chess.com"]
[Date "2023.10.10"]
[Round "10"]
[White "kingapolak"]
[Black "Happy1712Drummer"]
[Result "0-1"]
[WhiteElo "2055"]
[BlackElo "2362"]
[TimeControl "180+1"]
[EndTime "9:54:23 PDT"]
[Termination "Happy1712Drummer won on time"]

1. e4 {[%clk 0:03:00.9]} 1... c5 {[%clk 0:02:58.7]} 2. Nf3 {[%clk 0:03:00.5]}
2... d6 {[%clk 0:02:58.2]} 3. d4 {[%clk 0:03:00]} 3... cxd4 {[%clk 0:02:58.4]}
4. Nxd4 {[%clk 0:03:00.9]} 4... Nf6 {[%clk 0:02:58.7]} 5. Nc3 {[%clk 0:03:00.6]}
5... g6 {[%clk 0:02:59]} 6. Be3 {[%clk 0:02:58.8]} 6... Bg7 {[%clk 0:02:59.2]}
7. f3 {[%clk 0:02:59]} 7... a6 {[%clk 0:02:58.3]} 8. Qd2 {[%clk 0:02:55.2]} 8...
h5 {[%clk 0:02:58.2]} 9. O-O-O {[%clk 0:02:35.4]} 9... b5 {[%clk 0:02:57.1]} 10.
Kb1 {[%clk 0:02:31.8]} 10... Nbd7 {[%clk 0:02:55.9]} 11. Nd5 {[%clk 0:02:27.3]}
11... Bb7 {[%clk 0:02:47.8]} 12. Nxf6+ {[%clk 0:02:16.8]} 12... Nxf6 {[%clk
0:02:43.4]} 13. Rg1 {[%clk 0:02:16.6]} 13... Rc8 {[%clk 0:02:23.5]} 14. Bd3
{[%clk 0:02:06.7]} 14... Qc7 {[%clk 0:02:16.8]} 15. Nb3 {[%clk 0:01:46.4]} 15...
Nd7 {[%clk 0:01:50]} 16. f4 {[%clk 0:01:41.6]} 16... Nc5 {[%clk 0:01:46]} 17.
Nxc5 {[%clk 0:01:41.3]} 17... dxc5 {[%clk 0:01:46.6]} 18. e5 {[%clk 0:01:13.8]}
18... c4 {[%clk 0:01:31.5]} 19. Be2 {[%clk 0:01:12.3]} 19... Be4 {[%clk
0:01:28.5]} 20. Bd4 {[%clk 0:00:48.6]} 20... Bf5 {[%clk 0:01:23.6]} 21. Ka1
{[%clk 0:00:39.1]} 21... e6 {[%clk 0:01:13.8]} 22. c3 {[%clk 0:00:38.7]} 22...
Bf8 {[%clk 0:01:13]} 23. g4 {[%clk 0:00:33.9]} 23... hxg4 {[%clk 0:01:11.4]} 24.
Bxg4 {[%clk 0:00:34]} 24... Bxg4 {[%clk 0:00:49.9]} 25. Rxg4 {[%clk 0:00:33.8]}
25... Be7 {[%clk 0:00:50.6]} 26. Rdg1 {[%clk 0:00:32.7]} 26... Qc6 {[%clk
0:00:49]} 27. Qc2 {[%clk 0:00:26.7]} 27... Rd8 {[%clk 0:00:45.3]} 28. Kb1 {[%clk
0:00:25.6]} 28... Qf3 {[%clk 0:00:38.3]} 29. Qd2 {[%clk 0:00:19.2]} 29... Bc5
{[%clk 0:00:27.3]} 30. Ka1 {[%clk 0:00:14.8]} 30... Bxd4 {[%clk 0:00:27]} 31.
cxd4 {[%clk 0:00:14.9]} 31... Qe4 {[%clk 0:00:27.1]} 32. f5 {[%clk 0:00:15.3]}
32... Qxf5 {[%clk 0:00:27]} 33. Rf4 {[%clk 0:00:12.8]} 33... Qd3 {[%clk
0:00:25.7]} 34. Qxd3 {[%clk 0:00:08.8]} 34... cxd3 {[%clk 0:00:26.6]} 35. h4
{[%clk 0:00:03.2]} 35... Rd5 {[%clk 0:00:19.5]} 36. Kb1 {[%clk 0:00:02.6]} 36...
Ke7 {[%clk 0:00:18.7]} 37. Rd1 {[%clk 0:00:02.4]} 37... Rhd8 {[%clk 0:00:16.9]}
38. Rxd3 {[%clk 0:00:02.3]} 38... Rxe5 {[%clk 0:00:17.4]} 39. Kc2 {[%clk
0:00:02]} 39... Re1 {[%clk 0:00:11.5]} 40. Kb3 {[%clk 0:00:01.9]} 40... Rh1
{[%clk 0:00:09.9]} 0-1

[Event "Early-Titled-Tuesday-Blitz-October-10-2023"]
[Site "Chess.com"]
[Date "2023.10.10"]
[Round "10"]
[White "sokidze"]
[Black "HajiyevKanan"]
[Result "1-0"]
[WhiteElo "2785"]
[BlackElo "2577"]
[TimeControl "180+1"]
[EndTime "9:54:24 PDT"]
[Termination "sokidze won on time"]

1. d4 {[%clk 0:03:00.9]} 1... d5 {[%clk 0:02:49.7]} 2. c4 {[%clk 0:03:01.4]}
2... c6 {[%clk 0:02:50.5]} 3. Nf3 {[%clk 0:02:55.6]} 3... Nf6 {[%clk 0:02:51]}
4. g3 {[%clk 0:02:56.3]} 4... a6 {[%clk 0:02:51.5]} 5. Nbd2 {[%clk 0:02:52.8]}
5... Bf5 {[%clk 0:02:51.9]} 6. Nh4 {[%clk 0:02:48]} 6... Bg4 {[%clk 0:02:51.4]}
7. Qb3 {[%clk 0:02:42.6]} 7... b5 {[%clk 0:02:50.9]} 8. cxd5 {[%clk 0:02:41.4]}
8... Qxd5 {[%clk 0:02:49.7]} 9. Nhf3 {[%clk 0:02:31.5]} 9... e6 {[%clk
0:02:43.1]} 10. Bg2 {[%clk 0:02:29.6]} 10... Qxb3 {[%clk 0:02:41.4]} 11. Nxb3
{[%clk 0:02:30.5]} 11... Nbd7 {[%clk 0:02:39.9]} 12. O-O {[%clk 0:02:27.6]}
12... Rc8 {[%clk 0:02:40.1]} 13. h3 {[%clk 0:02:05.3]} 13... Bf5 {[%clk
0:02:37.4]} 14. Nfd2 {[%clk 0:01:52.6]} 14... Be7 {[%clk 0:02:31.5]} 15. e4
{[%clk 0:01:41.8]} 15... Bg6 {[%clk 0:02:31.3]} 16. f4 {[%clk 0:01:42.2]} 16...
h5 {[%clk 0:02:19.9]} 17. e5 {[%clk 0:01:34.2]} 17... Nd5 {[%clk 0:02:18.3]} 18.
Ne4 {[%clk 0:01:34.5]} 18... Bxe4 {[%clk 0:02:14.2]} 19. Bxe4 {[%clk 0:01:34.6]}
19... c5 {[%clk 0:02:03.7]} 20. dxc5 {[%clk 0:01:30.9]} 20... Nxc5 {[%clk
0:02:04.4]} 21. Bxd5 {[%clk 0:01:27.3]} 21... exd5 {[%clk 0:02:04.7]} 22. Be3
{[%clk 0:01:27.6]} 22... Ne4 {[%clk 0:01:47.6]} 23. Rac1 {[%clk 0:01:12.9]}
23... Rxc1 {[%clk 0:01:29.3]} 24. Rxc1 {[%clk 0:01:13.3]} 24... Nxg3 {[%clk
0:01:30.1]} 25. Rc8+ {[%clk 0:01:03.1]} 25... Bd8 {[%clk 0:01:29.3]} 26. Nd4
{[%clk 0:01:03.8]} 26... Kd7 {[%clk 0:01:24.8]} 27. Ra8 {[%clk 0:01:02.9]} 27...
Rh6 {[%clk 0:01:01]} 28. f5 {[%clk 0:00:58.2]} 28... Bb6 {[%clk 0:00:43]} 29.
Bxh6 {[%clk 0:00:41.3]} 29... Bxd4+ {[%clk 0:00:43.1]} 30. Kg2 {[%clk
0:00:41.7]} 30... Nxf5 {[%clk 0:00:43.6]} 31. Bf4 {[%clk 0:00:41.6]} 31... Bxb2
{[%clk 0:00:38.2]} 32. Rxa6 {[%clk 0:00:40.7]} 32... Bc3 {[%clk 0:00:33.2]} 33.
Kf3 {[%clk 0:00:31.3]} 33... b4 {[%clk 0:00:25.5]} 34. Ke2 {[%clk 0:00:24.9]}
34... g6 {[%clk 0:00:20.1]} 35. Kd3 {[%clk 0:00:24.4]} 35... Ke8 {[%clk
0:00:16.8]} 36. a4 {[%clk 0:00:22]} 36... Nd4 {[%clk 0:00:07.8]} 37. Bd2 {[%clk
0:00:18.3]} 37... Nb3 {[%clk 0:00:05.9]} 38. Ra8+ {[%clk 0:00:12.6]} 38... Kd7
{[%clk 0:00:06.2]} 39. Bxc3 {[%clk 0:00:13.3]} 39... bxc3 {[%clk 0:00:04.7]} 40.
Kxc3 {[%clk 0:00:13.6]} 40... Nc5 {[%clk 0:00:05.3]} 41. Kd4 {[%clk 0:00:13.9]}
41... Kc6 {[%clk 0:00:03.2]} 42. Rc8+ {[%clk 0:00:13.5]} 42... Kb6 {[%clk
0:00:03.6]} 43. Rxc5 {[%clk 0:00:13.6]} 1-0

[Event "Early-Titled-Tuesday-Blitz-October-10-2023"]
[Site "Chess.com"]
[Date "2023.10.10"]
[Round "10"]
[White "karinachess1"]
[Black "subham777"]
[Result "1-0"]
[WhiteElo "2626"]
[BlackElo "2511"]
[TimeControl "180+1"]
[EndTime "9:54:26 PDT"]
[Termination "karinachess1 won on time"]

1. d4 {[%clk 0:03:00.9]} 1... d5 {[%clk 0:02:59.6]} 2. c4 {[%clk 0:03:01.1]}
2... e6 {[%clk 0:02:55]} 3. Nc3 {[%clk 0:03:01.3]} 3... Nf6 {[%clk 0:02:55.2]}
4. Nf3 {[%clk 0:03:01.5]} 4... Be7 {[%clk 0:02:55]} 5. Bg5 {[%clk 0:03:00.1]}
5... O-O {[%clk 0:02:53.9]} 6. e3 {[%clk 0:03:00.6]} 6... Ne4 {[%clk 0:02:53.9]}
7. Bxe7 {[%clk 0:02:46.8]} 7... Qxe7 {[%clk 0:02:54.8]} 8. Qc2 {[%clk
0:02:44.6]} 8... f5 {[%clk 0:02:49.3]} 9. Bd3 {[%clk 0:02:36.8]} 9... c6 {[%clk
0:02:48.2]} 10. O-O-O {[%clk 0:02:25.2]} 10... Nd7 {[%clk 0:02:46.6]} 11. h3
{[%clk 0:02:17.4]} 11... Ndf6 {[%clk 0:02:42.5]} 12. Ne5 {[%clk 0:02:15.2]}
12... c5 {[%clk 0:02:26.7]} 13. g4 {[%clk 0:02:03.3]} 13... cxd4 {[%clk
0:02:21.9]} 14. exd4 {[%clk 0:02:02.2]} 14... Nxc3 {[%clk 0:02:10.3]} 15. Qxc3
{[%clk 0:01:54.5]} 15... Ne4 {[%clk 0:02:07.8]} 16. Qc2 {[%clk 0:01:47.7]} 16...
Bd7 {[%clk 0:01:44.9]} 17. f3 {[%clk 0:01:36]} 17... Nd6 {[%clk 0:01:33.7]} 18.
c5 {[%clk 0:01:29.2]} 18... Nb5 {[%clk 0:01:26.5]} 19. Be2 {[%clk 0:01:02.8]}
19... Rac8 {[%clk 0:01:11.1]} 20. Kb1 {[%clk 0:01:03]} 20... Be8 {[%clk
0:01:04.4]} 21. a4 {[%clk 0:00:52.4]} 21... Nc7 {[%clk 0:01:03.1]} 22. Bd3
{[%clk 0:00:52.3]} 22... Na6 {[%clk 0:00:56]} 23. Qd2 {[%clk 0:00:41.5]} 23...
Bxa4 {[%clk 0:00:49]} 24. Rde1 {[%clk 0:00:41.6]} 24... Nb4 {[%clk 0:00:44.6]}
25. Qxb4 {[%clk 0:00:40.7]} 25... Be8 {[%clk 0:00:36.1]} 26. gxf5 {[%clk
0:00:40.9]} 26... b6 {[%clk 0:00:34.1]} 27. fxe6 {[%clk 0:00:35.3]} 27... bxc5
{[%clk 0:00:32.9]} 28. dxc5 {[%clk 0:00:35.8]} 28... Rxc5 {[%clk 0:00:32.6]} 29.
Qd4 {[%clk 0:00:26.9]} 29... Ra5 {[%clk 0:00:19.7]} 30. Rhg1 {[%clk 0:00:22.5]}
30... Ra4 {[%clk 0:00:18.9]} 31. Qc3 {[%clk 0:00:11.6]} 31... Rb4 {[%clk
0:00:16.2]} 32. Nd7 {[%clk 0:00:09.2]} 32... Rff4 {[%clk 0:00:06.9]} 33. Rg3
{[%clk 0:00:06]} 33... d4 {[%clk 0:00:06.4]} 34. Qd2 {[%clk 0:00:06]} 34... g6
{[%clk 0:00:04.3]} 35. Qxf4 {[%clk 0:00:05.9]} 35... Rb7 {[%clk 0:00:03.7]} 36.
Qxd4 {[%clk 0:00:05.1]} 36... Bxd7 {[%clk 0:00:03.9]} 37. Rgg1 {[%clk
0:00:04.8]} 37... Be8 {[%clk 0:00:04.1]} 38. Bc4 {[%clk 0:00:04.8]} 38... Rb4
{[%clk 0:00:03.8]} 39. Qc3 {[%clk 0:00:04.9]} 39... a5 {[%clk 0:00:03.7]} 40.
Bd5 {[%clk 0:00:05.1]} 40... a4 {[%clk 0:00:02.6]} 41. Rc1 {[%clk 0:00:05.4]}
41... h5 {[%clk 0:00:01.5]} 42. Rge1 {[%clk 0:00:05.3]} 1-0

[Event "Early-Titled-Tuesday-Blitz-October-10-2023"]
[Site "Chess.com"]
[Date "2023.10.10"]
[Round "10"]
[White "Iskusnyh"]
[Black "chenrip"]
[Result "0-1"]
[WhiteElo "2577"]
[BlackElo "2500"]
[TimeControl "180+1"]
[EndTime "9:54:29 PDT"]
[Termination "chenrip won on time"]

1. d4 {[%clk 0:03:00.9]} 1... d5 {[%clk 0:02:52.2]} 2. c4 {[%clk 0:03:00]} 2...
e5 {[%clk 0:02:52.3]} 3. dxe5 {[%clk 0:02:58.7]} 3... d4 {[%clk 0:02:52.9]} 4.
Nf3 {[%clk 0:02:58.2]} 4... Nc6 {[%clk 0:02:53.3]} 5. Nbd2 {[%clk 0:02:54.8]}
5... Be6 {[%clk 0:02:52.2]} 6. g3 {[%clk 0:02:49.4]} 6... Qd7 {[%clk 0:02:52.3]}
7. Bg2 {[%clk 0:02:49.4]} 7... O-O-O {[%clk 0:02:52.8]} 8. O-O {[%clk
0:02:46.4]} 8... h6 {[%clk 0:02:53.1]} 9. a3 {[%clk 0:02:41.6]} 9... Nge7 {[%clk
0:02:53.5]} 10. b4 {[%clk 0:02:40.1]} 10... Ng6 {[%clk 0:02:54.1]} 11. Qa4
{[%clk 0:02:27.4]} 11... Kb8 {[%clk 0:02:52.5]} 12. Nb3 {[%clk 0:02:21.6]} 12...
Ncxe5 {[%clk 0:02:38.6]} 13. Qxd7 {[%clk 0:02:15.5]} 13... Nxf3+ {[%clk
0:02:37.8]} 14. Bxf3 {[%clk 0:02:16]} 14... Rxd7 {[%clk 0:02:38]} 15. Rd1 {[%clk
0:02:13.2]} 15... Bxc4 {[%clk 0:02:19.9]} 16. Na5 {[%clk 0:02:01.9]} 16... Bd5
{[%clk 0:01:55.3]} 17. Rxd4 {[%clk 0:01:58.2]} 17... c6 {[%clk 0:01:52.5]} 18.
Bxd5 {[%clk 0:01:53.9]} 18... Rxd5 {[%clk 0:01:50.2]} 19. Rxd5 {[%clk
0:01:51.2]} 19... cxd5 {[%clk 0:01:50.6]} 20. Bb2 {[%clk 0:01:51.2]} 20... f6
{[%clk 0:01:21]} 21. Rd1 {[%clk 0:01:49]} 21... Ne7 {[%clk 0:01:21]} 22. e4
{[%clk 0:01:23.5]} 22... b6 {[%clk 0:01:21]} 23. Nb3 {[%clk 0:01:19.4]} 23...
dxe4 {[%clk 0:01:21.2]} 24. Rd8+ {[%clk 0:01:18.5]} 24... Kc7 {[%clk 0:01:19.3]}
25. Re8 {[%clk 0:01:18.2]} 25... Kd7 {[%clk 0:01:16.2]} 26. Rb8 {[%clk
0:01:15.5]} 26... Nc8 {[%clk 0:01:12.2]} 27. Rb7+ {[%clk 0:01:12.6]} 27... Kc6
{[%clk 0:01:08.8]} 28. Rf7 {[%clk 0:01:11.9]} 28... Ne7 {[%clk 0:00:49.2]} 29.
Nd4+ {[%clk 0:01:06.1]} 29... Kd5 {[%clk 0:00:49.4]} 30. b5 {[%clk 0:01:05]}
30... h5 {[%clk 0:00:44.5]} 31. h4 {[%clk 0:01:00.1]} 31... Kd6 {[%clk
0:00:43.2]} 32. a4 {[%clk 0:00:58.9]} 32... Kd7 {[%clk 0:00:43.1]} 33. Nf5
{[%clk 0:00:33.3]} 33... Ke6 {[%clk 0:00:42.6]} 34. Rxf8 {[%clk 0:00:21.8]}
34... Rxf8 {[%clk 0:00:41.8]} 35. Nxg7+ {[%clk 0:00:22.1]} 35... Kf7 {[%clk
0:00:27.7]} 36. Nxh5 {[%clk 0:00:23]} 36... Nd5 {[%clk 0:00:28]} 37. Kg2 {[%clk
0:00:19.7]} 37... Rc8 {[%clk 0:00:23.8]} 38. g4 {[%clk 0:00:17.3]} 38... Rc2
{[%clk 0:00:23]} 39. Bd4 {[%clk 0:00:16.6]} 39... Rc4 {[%clk 0:00:23.1]} 40. Bb2
{[%clk 0:00:13.1]} 40... Rxa4 {[%clk 0:00:22.5]} 41. Kg3 {[%clk 0:00:12.5]}
41... Rb4 {[%clk 0:00:22.1]} 42. Ba1 {[%clk 0:00:10.8]} 42... Rb3+ {[%clk
0:00:22.2]} 43. Kg2 {[%clk 0:00:09.5]} 43... Rxb5 {[%clk 0:00:22.8]} 44. Ng3
{[%clk 0:00:08.6]} 44... Rb4 {[%clk 0:00:21.9]} 45. Nf5 {[%clk 0:00:08.6]} 45...
Rb3 {[%clk 0:00:20.6]} 46. h5 {[%clk 0:00:08]} 46... Nf4+ {[%clk 0:00:20.8]} 47.
Kh2 {[%clk 0:00:06.9]} 47... Rh3+ {[%clk 0:00:19.7]} 48. Kg1 {[%clk 0:00:06.7]}
48... Ra3 {[%clk 0:00:18.9]} 49. Bd4 {[%clk 0:00:01.7]} 49... Ke6 {[%clk
0:00:18.5]} 0-1

[Event "Early-Titled-Tuesday-Blitz-October-10-2023"]
[Site "Chess.com"]
[Date "2023.10.10"]
[Round "10"]
[White "Barmen_EV"]
[Black "SharapovEvgeny"]
[Result "1-0"]
[WhiteElo "2514"]
[BlackElo "2606"]
[TimeControl "180+1"]
[EndTime "9:54:30 PDT"]
[Termination "Barmen_EV won by resignation"]

1. e4 {[%clk 0:02:55.1]} 1... c5 {[%clk 0:02:59.8]} 2. c3 {[%clk 0:02:55.2]}
2... Nf6 {[%clk 0:02:59.2]} 3. e5 {[%clk 0:02:55.7]} 3... Nd5 {[%clk 0:02:59.3]}
4. d4 {[%clk 0:02:56.6]} 4... cxd4 {[%clk 0:02:59.5]} 5. Nf3 {[%clk 0:02:57.3]}
5... Nc6 {[%clk 0:02:59.5]} 6. cxd4 {[%clk 0:02:57]} 6... d6 {[%clk 0:02:59.4]}
7. Bc4 {[%clk 0:02:57.1]} 7... Nb6 {[%clk 0:02:59.4]} 8. Bb5 {[%clk 0:02:57.5]}
8... dxe5 {[%clk 0:02:59.5]} 9. Nxe5 {[%clk 0:02:58.4]} 9... Bd7 {[%clk
0:02:59.8]} 10. Nc3 {[%clk 0:02:59]} 10... Nxe5 {[%clk 0:02:58.5]} 11. dxe5
{[%clk 0:02:59.9]} 11... Bxb5 {[%clk 0:02:58.3]} 12. Nxb5 {[%clk 0:03:00.8]}
12... Qxd1+ {[%clk 0:02:58.3]} 13. Kxd1 {[%clk 0:03:01.7]} 13... O-O-O+ {[%clk
0:02:56.4]} 14. Ke2 {[%clk 0:03:01.9]} 14... a6 {[%clk 0:02:56.7]} 15. Be3
{[%clk 0:02:59.3]} 15... Nd5 {[%clk 0:02:36.3]} 16. Rac1+ {[%clk 0:02:58.3]}
16... Kb8 {[%clk 0:02:35.6]} 17. Ba7+ {[%clk 0:02:51.6]} 17... Ka8 {[%clk
0:02:35.6]} 18. Rhd1 {[%clk 0:02:29.9]} 18... axb5 {[%clk 0:02:23.7]} 19. Bb6
{[%clk 0:02:29]} 19... Nxb6 {[%clk 0:02:24]} 20. Rxd8+ {[%clk 0:02:28.8]} 20...
Ka7 {[%clk 0:02:24.6]} 21. Rc7 {[%clk 0:02:28.3]} 21... g6 {[%clk 0:02:16.6]}
22. Rxe7 {[%clk 0:02:24.2]} 22... Bxe7 {[%clk 0:02:15.1]} 23. Rxh8 {[%clk
0:02:25.1]} 23... Nc4 {[%clk 0:02:06.5]} 24. f4 {[%clk 0:02:24.7]} 24... Nxb2
{[%clk 0:01:46.8]} 25. Rxh7 {[%clk 0:02:23.9]} 25... Na4 {[%clk 0:01:45.9]} 26.
Rxf7 {[%clk 0:02:22.9]} 26... Bc5 {[%clk 0:01:41.3]} 27. e6 {[%clk 0:02:21.9]}
27... Nc3+ {[%clk 0:01:35]} 28. Kd3 {[%clk 0:02:21.2]} 28... Nd5 {[%clk
0:01:35.1]} 29. Ke4 {[%clk 0:02:19.7]} 29... Ne7 {[%clk 0:01:33.1]} 30. g4
{[%clk 0:02:20.3]} 30... Kb6 {[%clk 0:01:29.5]} 31. f5 {[%clk 0:02:19.6]} 31...
gxf5+ {[%clk 0:01:30.1]} 32. gxf5 {[%clk 0:02:20.5]} 32... Kc6 {[%clk
0:01:29.5]} 33. f6 {[%clk 0:02:19.9]} 33... Nc8 {[%clk 0:01:26.3]} 34. Rd7
{[%clk 0:02:10.3]} 34... Nd6+ {[%clk 0:01:23.1]} 35. Kf4 {[%clk 0:02:08.6]}
35... Kd5 {[%clk 0:01:11.8]} 36. e7 {[%clk 0:01:59.6]} 36... Ke6 {[%clk
0:01:06.3]} 37. Rd8 {[%clk 0:01:15.6]} 37... Kxf6 {[%clk 0:01:02.6]} 38. e8=Q
{[%clk 0:01:14.9]} 38... Nxe8 {[%clk 0:01:02.5]} 39. Rxe8 {[%clk 0:01:15.8]}
39... Bd6+ {[%clk 0:01:02.7]} 40. Ke4 {[%clk 0:01:16]} 40... Bxh2 {[%clk
0:01:02.6]} 41. Kd5 {[%clk 0:01:16.1]} 41... Kf7 {[%clk 0:00:51.2]} 42. Re2
{[%clk 0:01:15.7]} 42... Bg1 {[%clk 0:00:42.1]} 43. Kd6 {[%clk 0:01:12.8]} 43...
b6 {[%clk 0:00:28.5]} 44. Kc6 {[%clk 0:01:13]} 44... b4 {[%clk 0:00:27.3]} 45.
Kd7 {[%clk 0:00:36.2]} 45... Bc5 {[%clk 0:00:26]} 46. Re6 {[%clk 0:00:36.4]}
46... Bd4 {[%clk 0:00:20.5]} 47. Re4 {[%clk 0:00:30.1]} 47... Bc5 {[%clk
0:00:20.4]} 48. Kc6 {[%clk 0:00:30.4]} 48... Kf6 {[%clk 0:00:20.1]} 49. Kd5
{[%clk 0:00:30.4]} 49... Kf5 {[%clk 0:00:20.1]} 50. Re1 {[%clk 0:00:30.4]} 50...
Kf4 {[%clk 0:00:20.2]} 51. Rc1 {[%clk 0:00:25.6]} 51... Ke3 {[%clk 0:00:18.7]}
52. Rxc5 {[%clk 0:00:21.5]} 52... bxc5 {[%clk 0:00:18.8]} 53. Kxc5 {[%clk
0:00:22.4]} 53... Ke4 {[%clk 0:00:19]} 54. Kxb4 {[%clk 0:00:22.7]} 54... Kd5
{[%clk 0:00:19.6]} 55. Kb5 {[%clk 0:00:23.3]} 55... Kd6 {[%clk 0:00:20.1]} 56.
Kb6 {[%clk 0:00:23.9]} 56... Kd7 {[%clk 0:00:20]} 57. Kb7 {[%clk 0:00:24.4]}
57... Kd6 {[%clk 0:00:20.1]} 58. a4 {[%clk 0:00:24.8]} 58... Kc5 {[%clk
0:00:20.7]} 59. a5 {[%clk 0:00:25.7]} 59... Kb5 {[%clk 0:00:21.3]} 60. a6 {[%clk
0:00:26.6]} 1-0

[Event "Early-Titled-Tuesday-Blitz-October-10-2023"]
[Site "Chess.com"]
[Date "2023.10.10"]
[Round "10"]
[White "Flaccidmoves"]
[Black "ama18"]
[Result "0-1"]
[WhiteElo "2428"]
[BlackElo "2535"]
[TimeControl "180+1"]
[EndTime "9:54:36 PDT"]
[Termination "ama18 won by resignation"]

1. g3 {[%clk 0:02:57.8]} 1... g6 {[%clk 0:02:59]} 2. Bg2 {[%clk 0:02:57.9]} 2...
Bg7 {[%clk 0:02:59.7]} 3. Nf3 {[%clk 0:02:57.8]} 3... Nf6 {[%clk 0:02:58.3]} 4.
O-O {[%clk 0:02:58.2]} 4... O-O {[%clk 0:02:58.1]} 5. c4 {[%clk 0:02:58.6]} 5...
c5 {[%clk 0:02:55.2]} 6. Nc3 {[%clk 0:02:58.1]} 6... Nc6 {[%clk 0:02:54.2]} 7.
a3 {[%clk 0:02:52.6]} 7... e5 {[%clk 0:02:48.5]} 8. d3 {[%clk 0:02:50.8]} 8...
d6 {[%clk 0:02:48.3]} 9. Rb1 {[%clk 0:02:47.8]} 9... Be6 {[%clk 0:02:42.6]} 10.
b4 {[%clk 0:02:45.5]} 10... b6 {[%clk 0:02:42.7]} 11. Ng5 {[%clk 0:02:42.8]}
11... Rc8 {[%clk 0:02:38.5]} 12. Nxe6 {[%clk 0:02:39.8]} 12... fxe6 {[%clk
0:02:39.4]} 13. b5 {[%clk 0:02:29.5]} 13... Ne7 {[%clk 0:02:34.8]} 14. Bh3
{[%clk 0:02:27.9]} 14... Qd7 {[%clk 0:02:34.2]} 15. Ne4 {[%clk 0:02:24.5]} 15...
Nf5 {[%clk 0:02:24.8]} 16. a4 {[%clk 0:02:01.3]} 16... Rcd8 {[%clk 0:02:17]} 17.
a5 {[%clk 0:01:56.2]} 17... d5 {[%clk 0:02:15.1]} 18. cxd5 {[%clk 0:01:52.8]}
18... exd5 {[%clk 0:02:16]} 19. Nxf6+ {[%clk 0:01:52.4]} 19... Bxf6 {[%clk
0:02:16.9]} 20. Qb3 {[%clk 0:01:19.5]} 20... Qf7 {[%clk 0:02:13.1]} 21. Bb2
{[%clk 0:01:02]} 21... Nd4 {[%clk 0:01:16.4]} 22. Bxd4 {[%clk 0:01:01.1]} 22...
exd4 {[%clk 0:01:17.3]} 23. Ra1 {[%clk 0:00:36.8]} 23... c4 {[%clk 0:01:16.9]}
24. Qc2 {[%clk 0:00:33.6]} 24... Bg5 {[%clk 0:01:13.6]} 25. axb6 {[%clk
0:00:30.8]} 25... axb6 {[%clk 0:01:14.5]} 26. Ra6 {[%clk 0:00:30.8]} 26... Rd6
{[%clk 0:01:12.2]} 27. Bg2 {[%clk 0:00:21.8]} 27... c3 {[%clk 0:01:10]} 28. Qb3
{[%clk 0:00:20.7]} 28... Kh8 {[%clk 0:01:09.2]} 29. Ra4 {[%clk 0:00:18.7]} 29...
Bf6 {[%clk 0:01:03.1]} 30. Ra6 {[%clk 0:00:16.7]} 30... Bg7 {[%clk 0:01:03]} 31.
Qb4 {[%clk 0:00:15.7]} 31... Rf6 {[%clk 0:01:02.1]} 32. Bf3 {[%clk 0:00:13]}
32... Rxf3 {[%clk 0:00:57.4]} 33. exf3 {[%clk 0:00:13.9]} 33... Qxf3 {[%clk
0:00:57.7]} 34. Ra7 {[%clk 0:00:13.3]} 34... Qxd3 {[%clk 0:00:52.9]} 35. Qe7
{[%clk 0:00:13.1]} 35... Rg8 {[%clk 0:00:53.1]} 36. Rc7 {[%clk 0:00:11.4]} 36...
Qe4 {[%clk 0:00:49.5]} 37. Qd6 {[%clk 0:00:10.5]} 37... d3 {[%clk 0:00:48.1]}
38. Qc6 {[%clk 0:00:09.8]} 38... c2 {[%clk 0:00:35.8]} 39. Rd7 {[%clk 0:00:09]}
39... Qc4 {[%clk 0:00:34.8]} 40. Rxd5 {[%clk 0:00:05.6]} 40... Qxc6 {[%clk
0:00:32.5]} 41. bxc6 {[%clk 0:00:06.5]} 41... Rc8 {[%clk 0:00:32.6]} 42. Rxd3
{[%clk 0:00:06.5]} 42... Bb2 {[%clk 0:00:20.1]} 43. Rd2 {[%clk 0:00:06.4]} 43...
c1=Q {[%clk 0:00:20]} 44. Rxc1 {[%clk 0:00:04.7]} 44... Bxc1 {[%clk 0:00:20.9]}
45. Rc2 {[%clk 0:00:03.9]} 45... Ba3 {[%clk 0:00:21.3]} 46. Kf1 {[%clk
0:00:04.3]} 46... Bc5 {[%clk 0:00:22]} 47. Rd2 {[%clk 0:00:03.6]} 47... Rxc6
{[%clk 0:00:22.4]} 48. Rd7 {[%clk 0:00:02.5]} 48... b5 {[%clk 0:00:21.7]} 49.
Ke2 {[%clk 0:00:03.4]} 49... b4 {[%clk 0:00:21.7]} 50. Kd3 {[%clk 0:00:03.6]}
50... Bf8 {[%clk 0:00:20.7]} 51. f4 {[%clk 0:00:03.1]} 51... Rb6 {[%clk
0:00:19.1]} 52. Rb7 {[%clk 0:00:03.6]} 52... Rxb7 {[%clk 0:00:19]} 0-1